Cogmind - Beta 13 @@@ ROGUE MODE // 2024.04.05 @ 23:28:03 Player: chexo4 Result: Destroyed by G-67 Veteran with Plasma Rifle Performance ------------- Evolutions (6) 3000 Regions Visited (10) 2000 Robots Destroyed (63) 315 Value Destroyed (2194) 2194 Prototype IDs (11) 220 Alien Tech Used (0) 0 Bonus (599) 599 TOTAL SCORE: 8328 Bonus ------- Follower Combat Kills 165 Entered Garrisons 200 Aligned with FarCom 300 Friendly Fire -66 Cogmind --------- Core Integrity 0/1150 Matter 300/300 Energy 98/100 System Corruption 6% Temperature Cool (39) Movement Core (50) Location -4/Garrison Parts ------- > --- POWER (4) -------- (None) > --- PROPULSION (6) --- (None) > --- UTILITY (5) ------ Enhanced Optical Array > --- WEAPON (4) ------- (None) > --- INVENTORY (5) ---- Heat Sink Large Storage Unit Improved Signal Interpreter Improved Propulsion Shielding Peak State ------------ > --- POWER ------------ Light Ion Engine Light Angular Momentum Engine Light Angular Momentum Engine > --- PROPULSION ------- Aluminum Leg Improved Aluminum Leg Carbon-fiber Leg Carbon-fiber Leg Carbon-fiber Leg Carbon-fiber Leg > --- UTILITY ---------- High-capacity Storage Unit Matter Compressor Weight Redist. System Enhanced Optical Array > --- WEAPON ----------- Heavy Laser Cooled Particle Cannon Enhanced Autogun Precision Assault Rifle > --- INVENTORY -------- Carbon-fiber Leg Carbon-fiber Leg Titanium Leg Titanium Leg Titanium Leg Improved Titanium Leg Xenon Bombardment Thruster Field Propulsion Drive Heat Sink Medium Storage Unit Large Storage Unit Improved Sensor Array Improved Signal Interpreter Improved Propulsion Shielding Heavy EM Shotgun Heavy Laser KE Penetrator Gauss Cannon Magnetic Acceleration Cannon [Rating: 63] Favorites ----------- Power Light Ion Engine Engine Light Ion Engine Power Core Light Nuclear Core Propulsion Carbon-fiber Leg Leg Carbon-fiber Leg Wheel Compact Wheel Flight Unit Flight Unit Utility Improved Terrain Scanner Device Improved Terrain Scanner Storage Medium Storage Unit Processor Enhanced Optical Array Weapon AWS/Gauss Energy Gun Heavy Laser Energy Cannon Cooled Particle Cannon Ballistic Gun AWS/Gauss Ballistic Cannon Enhanced Gauss Cannon Special Melee Weapon Datajack Build | -11 -10 -10 -10 -9 -8 -7 -6 -5 -4 -4 ------- Run | Yrd Mat Min Exi Min Mat Fac Fac Fac Fac Gar Slots Evolved 12 | . . . . . 4 2 2 2 2 . Power 3 | . . . . . . . 2 . 1 . Propulsion 4 | . . . . . 4 . . . . . Utility 3 | . . . . . . 1 . 1 1 . Weapon 2 | . . . . . . 1 . 1 . . Parts Attached 108 | 7 . 11 4 2 43 14 3 24 . . Power 12 | 1 . 1 . . 2 . 2 6 . . Engine 7 | 1 . 1 . . . . 2 3 . . Core 5 | . . . . . 2 . . 3 . . Reactor . | . . . . . . . . . . . Propulsion 47 | 2 . 2 . 2 25 5 . 11 . . Treads . | . . . . . . . . . . . Leg 26 | . . . . 2 11 5 . 8 . . Wheel 6 | 2 . . . . 4 . . . . . Hover . | . . . . . . . . . . . Flight 15 | . . 2 . . 10 . . 3 . . Utility 15 | 2 . 2 1 . 3 2 1 4 . . Device 6 | 1 . 1 . . 1 . . 3 . . Storage 8 | 1 . 1 1 . 2 2 1 . . . Processor 1 | . . . . . . . . 1 . . Hackware . | . . . . . . . . . . . Protection . | . . . . . . . . . . . Artifact . | . . . . . . . . . . . Weapon 34 | 2 . 6 3 . 13 7 . 3 . . Energy Gun 9 | 1 . 3 . . 3 . . 2 . . Energy Cannon 5 | . . . 1 . 2 2 . . . . Ballistic Gun 14 | 1 . 1 1 . 7 4 . . . . Ballistic Cannon 3 | . . . . . 1 1 . 1 . . Launcher . | . . . . . . . . . . . Special Weapon . | . . . . . . . . . . . Impact Weapon . | . . . . . . . . . . . Slashing Weapon . | . . . . . . . . . . . Piercing Weapon . | . . . . . . . . . . . Special Melee Weapon 3 | . . 2 1 . . . . . . . Unidentified Prototypes 9 | . . . 2 . 4 2 . 1 . . Parts Lost 25 | . . 1 . . 3 . . 18 1 2 Power 6 | . . . . . . . . 5 . 1 Propulsion 12 | . . . . . 3 . . 8 1 . Utility 3 | . . 1 . . . . . 1 . 1 Weapon 4 | . . . . . . . . 4 . . Highest Loss Streak 5 | . . 1 . . 3 . . 5 1 2 To Critical Strikes . | . . . . . . . . . . . Average Slot Usage (%) 79 | . 100 79 85 85 64 90 95 76 19 11 Engine 7 | . 14 14 14 14 1 . 8 4 5 2 Core 3 | . . . . . 7 7 6 8 . . Leg 19 | . . . . 27 21 46 40 25 . . Wheel 1 | . 28 6 . . 1 . . . . . Flight 10 | . . 21 28 . 10 . . 1 3 . Device 9 | . 14 5 14 14 5 7 6 5 5 3 Storage 11 | . 14 6 14 14 8 12 13 9 . . Energy Gun 1 | . 14 11 . . . . . 4 . . Ballistic Gun 10 | . 14 14 14 14 8 13 13 4 . . Naked Turns . | . . . . . . . . . . . Heaviest Build 84 | 15 15 15 24 24 35 62 74 84 9 9 Greatest Support 102 | 32 32 32 8 23 102 102 92 102 13 9 Greatest Overweight (x) 7 | 3 . 1 2 2 7 3 . 6 . . Average Overweight (x) . | . . . 1 1 . . . . . . Largest Inventory Capacity 20 | 8 8 8 10 10 15 20 20 20 5 5 Average Capacity 12 | 7 8 6 8 10 12 18 20 17 5 5 Most Carried 20 | 2 . 8 10 10 12 12 14 20 4 4 Average Carried 8 | . . 3 7 9 6 9 12 13 4 4 Final Capacity 20 | 8 8 8 10 10 10 20 20 5 5 5 Final Carried 14 | 1 . 7 10 10 7 12 14 4 4 4 Class Distribution -------------------- 39% | Scavenger-Mutant 25% | Scavenger-Skirmisher 18% | Mutant 13% | Scavenger-Gunner Dominant Class ---------------- Mutant | -10/Materials Mutant | -10/Mines Scavenger-Mutant | -10/Exiles Scavenger-Skirmisher | -9/Mines Scavenger-Mutant | -8/Materials Scavenger-Gunner | -7/Factory Scavenger-Gunner | -6/Factory Scavenger-Skirmisher | -5/Factory Mutant | -4/Factory Mutant | -4/Garrison Resources | -11 -10 -10 -10 -9 -8 -7 -6 -5 -4 -4 ----------- Run | Yrd Mat Min Exi Min Mat Fac Fac Fac Fac Gar Matter Collected 1912 | 272 . 86 . 110 407 514 37 486 . . Remotely . | . . . . . . . . . . . Salvage Created 2981 | 159 . 46 . 97 1070 703 173 733 . . Parts 152 | 5 . 9 . 3 59 25 10 41 . . Haulers Intercepted 4 | . . . . . 3 1 . . . . Recyclers Shooed 2 | . . . . . 2 . . . . . Parts Field Recycled . | . . . . . . . . . . . Retrieved Matter . | . . . . . . . . . . . Parts Self-Destructed . | . . . . . . . . . . . Prevented . | . . . . . . . . . . . Kills | -11 -10 -10 -10 -9 -8 -7 -6 -5 -4 -4 ------- Run | Yrd Mat Min Exi Min Mat Fac Fac Fac Fac Gar Combat Hostiles Destroyed 41 | . . 2 . 2 15 10 . 12 . . Guns 35 | . . 2 . 2 14 10 . 7 . . Cannons 4 | . . . . . 1 . . 3 . . Classes Destroyed 13 | 2 . 1 . 2 6 . . 2 . . Worker 2 | . . . . . 1 . . 1 . . Builder 2 | . . . . . 1 . 1 . . . Tunneler 5 | 3 . 2 . . . . . . . . Hauler 4 | . . . . . 3 1 . . . . Recycler 5 | 1 . . . . 2 1 1 . . . Watcher 4 | . . . . . 3 . 1 . . . Swarmer 4 | . . 2 . . 2 . . . . . Grunt 23 | . . . . 1 9 6 . 7 . . Brawler 1 | . . . . . . . . 1 . . Duelist 1 | . . . . 1 . . . . . . Sentry 8 | . . . . . 3 4 . 1 . . Hunter 1 | . . . . . 1 . . . . . Programmer 3 | . . . . . . . . 3 . . Best Kill Streak 8 | 4 . 2 . 2 5 7 1 8 . . Combat Bots Only 8 | . . 2 . 2 5 4 . 8 . . Max Kills in Single Turn 1 | 1 . 1 . 1 1 1 1 1 . . Gunslinging . | . . . . . . . . . . . Exploded . | . . . . . . . . . . . Melee . | . . . . . . . . . . . Uniques/NPCs Destroyed . | . . . . . . . . . . . Combat | -11 -10 -10 -10 -9 -8 -7 -6 -5 -4 -4 -------- Run | Yrd Mat Min Exi Min Mat Fac Fac Fac Fac Gar Hostile Shots Fired 487 | . 11 13 . 1 43 94 27 189 22 87 Missed 164 | . 4 5 . . 17 37 15 48 13 25 Damage Taken 5459 | . 82 102 . 12 396 578 103 2945 181 1060 Core 2037 | . 12 28 . . 55 111 15 657 117 1042 Absorbed by Shields 160 | . . . . . . . . . . 160 Core Remaining (%) 81 | 100 . . . 84 90 84 98 34 . . Volleys Fired 116 | 9 1 5 . . 15 38 7 41 . . Largest 4 | 2 2 2 . . 1 3 3 4 . . Hottest 156 | 70 70 70 . . 120 83 83 156 . . Shots Fired 344 | 14 2 10 . 4 73 84 21 136 . . Gun 285 | 14 2 10 . 4 68 81 14 92 . . Cannon 59 | . . . . . 5 3 7 44 . . Launcher . | . . . . . . . . . . . Special . | . . . . . . . . . . . Kinetic 236 | 5 1 5 . 4 68 82 14 57 . . Thermal 108 | 9 1 5 . . 5 2 7 79 . . Explosive . | . . . . . . . . . . . Electromagnetic . | . . . . . . . . . . . Robot Hit Streak 33 | 10 . 3 . 5 33 16 9 8 . . Robot Miss Streak 6 | 1 2 2 . . 3 2 4 6 . . Penetration Max . | . . . . . . . . . . . Secondary Targets . | . . . . . . . . . . . Autonomous 105 | . . . . 4 58 43 . . . . Shots Hit Robots 229 | 11 . 6 . 4 53 71 11 73 . . Core Hits 105 | 5 . 4 . 2 34 27 5 27 . 1 Critical Kills 2 | . . . . . 2 . . . . . Critical Parts Destroyed 4 | . . . . . . 2 1 1 . . Critical Strikes 8 | 1 . . . . 2 2 1 2 . . Burn 1 | 1 . . . . . . . . . . Destroy 6 | . . . . . 2 2 1 1 . . Blast 1 | . . . . . . . . 1 . . Melee Attacks 1 | . . 1 . . . . . . . . Impact . | . . . . . . . . . . . Slashing . | . . . . . . . . . . . Piercing . | . . . . . . . . . . . Sneak Attacks 1 | . . 1 . . . . . . . . Combat Hostiles . | . . . . . . . . . . . Follow-up Attacks . | . . . . . . . . . . . Damage Inflicted 6080 | 136 . 76 . 170 1927 1698 218 1837 . 18 Guns 4693 | 136 . 76 . 170 1637 1585 162 927 . . Cannons 1214 | . . . . . 172 80 56 906 . . Explosions . | . . . . . . . . . . . Melee . | . . . . . . . . . . . Ramming 173 | . . . . . 118 33 . 4 . 18 Kinetic 4325 | 37 . 27 . 170 1637 1612 162 680 . . Thermal 1582 | 99 . 49 . . 172 53 56 1153 . . Explosive . | . . . . . . . . . . . Electromagnetic . | . . . . . . . . . . . Impact . | . . . . . . . . . . . Slashing . | . . . . . . . . . . . Piercing . | . . . . . . . . . . . Highest Corruption 14 | . . . . . 2 1 . 14 . 6 Average Corruption 4 | . . . . . 2 1 . 10 . 6 Corruption Purged . | . . . . . . . . . . . Corruption Blocked . | . . . . . . . . . . . Effects 57 | . . . . . 15 2 . 39 . 1 Message Errors 8 | . . . . . 3 1 . 4 . . Matter Fused 16 | . . . . . 5 1 . 10 . . Heat Flow Errors 8 | . . . . . 1 . . 6 . 1 Energy Discharges 7 | . . . . . 1 . . 6 . . Parts Fused 1 | . . . . . . . . 1 . . Data Loss (minor) 5 | . . . . . 2 . . 3 . . Data Loss (major) 5 | . . . . . 1 . . 4 . . Misfires 2 | . . . . . . . . 2 . . Alerts 4 | . . . . . 2 . . 2 . . Weapon Failures 1 | . . . . . . . . 1 . . Overload Shots . | . . . . . . . . . . . Overflow Damage 84 | . . . . . 15 8 11 50 . . Projectiles 84 | . . . . . 15 8 11 50 . . Explosions . | . . . . . . . . . . . Melee . | . . . . . . . . . . . Knockbacks 3 | . . . . . . . . 3 . . Impact . | . . . . . . . . . . . Kinetic 3 | . . . . . . . . 3 . . Secondary . | . . . . . . . . . . . Self-Inflicted Damage 13 | . . . . . 2 . . 2 . 9 Shots . | . . . . . . . . . . . Rammed 5 | . . . . . 1 . . 1 . 3 Targets Rammed 25 | . . . . . 19 2 . 1 . 3 Kicked 20 | . . . . . 18 2 . . . . Crushed . | . . . . . . . . . . . Highest Temperature 658 | 40 9 36 . . 380 38 44 658 . 228 Average Temperature 161 | 14 6 13 . . 99 20 22 223 . 110 Received Heat Transfer 1802 | . 48 18 . 6 117 228 42 900 60 383 Effects 26 | . . . . . 1 . . 25 . . Shutdowns 10 | . . . . . . . . 10 . . Energy Bleed 6 | . . . . . 1 . . 5 . . Interference 2 | . . . . . . . . 2 . . Short Circuit 3 | . . . . . . . . 3 . . Damage (minor) 2 | . . . . . . . . 2 . . Damage (major) 2 | . . . . . . . . 2 . . Damage (core) 1 | . . . . . . . . 1 . . Siege Activations . | . . . . . . . . . . . Robots Corrupted . | . . . . . . . . . . . Combat Hostiles . | . . . . . . . . . . . Parts Fried . | . . . . . . . . . . . Impact Corruptions . | . . . . . . . . . . . Robots Melted 2 | . . . . . . . . 2 . . Combat Hostiles 2 | . . . . . . . . 2 . . Parts Melted 6 | . . . . 1 . . . 5 . . Heat Transferred 2731 | 370 . 148 . . 400 74 74 1665 . . Parts Sabotaged . | . . . . . . . . . . . Parts Stolen . | . . . . . . . . . . . Parts Stripped . | . . . . . . . . . . . Power Chain Reactions . | . . . . . . . . . . . Alert | -11 -10 -10 -10 -9 -8 -7 -6 -5 -4 -4 ------- Run | Yrd Mat Min Exi Min Mat Fac Fac Fac Fac Gar Peak Influence 283 | 20 65 187 . 96 283 223 83 211 54 75 Initial 60 | . 13 25 . . . 60 35 40 39 30 Average 91 | 6 38 94 . 33 145 122 47 94 42 42 Maximum Alert Level 1 | . . . . . 1 1 . 1 . . Low Security (%) 90 | 100 100 100 . 100 72 87 100 99 100 100 Level 1 9 | . . . . . 27 12 . . . . Level 2 . | . . . . . . . . . . . Level 3 . | . . . . . . . . . . . Level 4 . | . . . . . . . . . . . Level 5 . | . . . . . . . . . . . High Security . | . . . . . . . . . . . Max Security . | . . . . . . . . . . . Squads Dispatched 12 | . . . . . 1 4 . 7 . . Investigation 4 | . . . . . . 2 . 2 . . Extermination 3 | . . . . . . 1 . 2 . . Reinforcement 2 | . . . . . 1 1 . . . . Assault . | . . . . . . . . . . . Garrison 3 | . . . . . . . . 3 . . Intercept . | . . . . . . . . . . . Searches Triggered . | . . . . . . . . . . . Construction Impeded . | . . . . . . . . . . . Haulers Reinforced 1 | . . . . . . 1 . . . . Active Scanning Responses . | . . . . . . . . . . . Cargo Convoy Interrupts . | . . . . . . . . . . . Stealth | -11 -10 -10 -10 -9 -8 -7 -6 -5 -4 -4 --------- Run | Yrd Mat Min Exi Min Mat Fac Fac Fac Fac Gar Distress Signals 3 | . . . . . 3 . . . . . Communications Jammed . | . . . . . . . . . . . Distress Signals . | . . . . . . . . . . . Times Spotted 104 | . 5 6 . 3 32 13 2 28 5 10 Peak Tracking Total 9 | . 4 3 . 3 6 4 1 8 5 9 Tactical Retreats 7 | . . . . . 2 . . 4 . 1 Traps | -11 -10 -10 -10 -9 -8 -7 -6 -5 -4 -4 ------- Run | Yrd Mat Min Exi Min Mat Fac Fac Fac Fac Gar Traps Triggered 5 | . . . . . . 2 . . . 3 Indirectly . | . . . . . . . . . . . Trap Hack Attempts . | . . . . . . . . . . . Triggered . | . . . . . . . . . . . Disarmed 4 | . . . . . 4 . . . . . Reprogrammed . | . . . . . . . . . . . Reused . | . . . . . . . . . . . Traps Extracted . | . . . . . . . . . . . Installed . | . . . . . . . . . . . Triggered . | . . . . . . . . . . . Machines | -11 -10 -10 -10 -9 -8 -7 -6 -5 -4 -4 ---------- Run | Yrd Mat Min Exi Min Mat Fac Fac Fac Fac Gar Machines Disabled 8 | . . . . 1 6 1 . . . . Max in Single Turn 2 | . . . . 1 2 1 . . . . Machines Repaired . | . . . . . . . . . . . Machines Dismantled . | . . . . . . . . . . . Machines Sabotaged . | . . . . . . . . . . . Overloaded Fab Kills . | . . . . . . . . . . . Hacking | -11 -10 -10 -10 -9 -8 -7 -6 -5 -4 -4 --------- Run | Yrd Mat Min Exi Min Mat Fac Fac Fac Fac Gar Machines Accessed 19 | . 2 . 4 . 3 4 . 4 1 1 Terminals 11 | . 2 . . . 3 2 . 3 . 1 Fabricators 1 | . . . . . . . . 1 . . Repair Stations 1 | . . . . . . 1 . . . . Recycling Units . | . . . . . . . . . . . Scanalyzers 1 | . . . . . . 1 . . . . Garrison Access 1 | . . . . . . . . . 1 . Total Hacks 91 | . 3 . 49 . 10 12 . 12 1 4 Successful 68 | . 2 . 49 . 5 5 . 6 1 . Failed 23 | . 1 . . . 5 7 . 6 . 4 Catastrophic 2 | . . . . . 1 . . . . 1 Database Lockouts . | . . . . . . . . . . . Manual 11 | . . . 3 . 3 3 . 2 . . Terminals 30 | . 3 . . . 10 4 . 9 . 4 Fabricators 3 | . . . . . . . . 3 . . Repair Stations 5 | . . . . . . 5 . . . . Recycling Units . | . . . . . . . . . . . Scanalyzers 3 | . . . . . . 3 . . . . Garrison Access 1 | . . . . . . . . . 1 . Terminal Hacks 62 | . 2 . 49 . 5 2 . 4 . . Record 50 | . . . 49 . . . . 1 . . Prototype ID Bank 1 | . . . . . 1 . . . . . Open DSF 3 | . . . . . . 2 . 1 . . Branch Access Points 1 | . 1 . . . . . . . . . Alert Level 2 | . . . . . 1 . . 1 . . Unreport Threat 2 | . . . . . 1 . . 1 . . Locate Traps 1 | . . . . . 1 . . . . . Disarm Traps 1 | . . . . . 1 . . . . . Zone Layout 1 | . 1 . . . . . . . . . Fabricator Hacks 2 | . . . . . . . . 2 . . Load Schematic 1 | . . . . . . . . 1 . . Build 1 | . . . . . . . . 1 . . Repair Station Hacks 1 | . . . . . . 1 . . . . Scan Component 1 | . . . . . . 1 . . . . Recycling Unit Hacks . | . . . . . . . . . . . Scanalyzer 2 | . . . . . . 2 . . . . Insert Component 1 | . . . . . . 1 . . . . Analyze 1 | . . . . . . 1 . . . . Garrison Access Hacks 1 | . . . . . . . . . 1 . Unlock Access 1 | . . . . . . . . . 1 . Unauthorized Hacks . | . . . . . . . . . . . Terminals . | . . . . . . . . . . . Fabricators . | . . . . . . . . . . . Repair Stations . | . . . . . . . . . . . Recycling Units . | . . . . . . . . . . . Scanalyzers . | . . . . . . . . . . . Garrison Access . | . . . . . . . . . . . Data Cores Recovered . | . . . . . . . . . . . Used . | . . . . . . . . . . . Hacking Detections 10 | . 1 . . . 2 3 . 3 . 1 Full Trace Events 5 | . . . . . 1 1 . 2 . 1 Feedback Events . | . . . . . . . . . . . Feedback Blocked . | . . . . . . . . . . . Robot Schematics Acquired . | . . . . . . . . . . . Robots Built . | . . . . . . . . . . . Authchips . | . . . . . . . . . . . Time . | . . . . . . . . . . . Total Robot Build Rating . | . . . . . . . . . . . Part Schematics Acquired 1 | . . . . . . 1 . . . . Parts Built 2 | . . . . . . . . 2 . . Authchips . | . . . . . . . . . . . Time 84 | . . . . . . . . 84 . . Total Part Build Rating 8 | . . . . . . . . 8 . . Parts Repaired . | . . . . . . . . . . . Time . | . . . . . . . . . . . Parts Recycled . | . . . . . . . . . . . Recycled Matter . | . . . . . . . . . . . Retrieved Matter . | . . . . . . . . . . . Retrieved Components . | . . . . . . . . . . . Parts Scanalyzed 1 | . . . . . . 1 . . . . Part Schematics Acquired 1 | . . . . . . 1 . . . . Parts Damaged . | . . . . . . . . . . . Bothacking | -11 -10 -10 -10 -9 -8 -7 -6 -5 -4 -4 ------------ Run | Yrd Mat Min Exi Min Mat Fac Fac Fac Fac Gar Used RIF Installer . | . . . . . . . . . . . Robots Hacked 1 | . . 1 . . . . . . . . Non-combat 1 | . . 1 . . . . . . . . Combat . | . . . . . . . . . . . Robot Hacks Applied 1 | . . 1 . . . . . . . . no_distress 1 | . . 1 . . . . . . . . Relay Couplers Released . | . . . . . . . . . . . Fabnet Peak Effective % . | . . . . . . . . . . . Robots Rewired . | . . . . . . . . . . . Allies Hacked . | . . . . . . . . . . . Hacks Repelled . | . . . . . . . . . . . Allies | -11 -10 -10 -10 -9 -8 -7 -6 -5 -4 -4 -------- Run | Yrd Mat Min Exi Min Mat Fac Fac Fac Fac Gar Total Allies 4 | . . 3 . 1 . . . . . . Largest Group 4 | . . 3 3 4 2 . . . . . Highest-Rated Group 70 | . . 40 40 70 32 . . . . . Highest-Rated Ally 31 | . . 16 16 31 16 . . . . . Total Orders . | . . . . . . . . . . . Ally Attacks 45 | . . 10 . 20 15 . . . . . Total Damage 908 | . . 100 . 286 522 . . . . . Kills 14 | . . 4 . 5 5 . . . . . Allies Corrupted . | . . . . . . . . . . . Allies Melted . | . . . . . . . . . . . Turrets Deployed 3 | . . . . . 3 . . . . . Intel | -11 -10 -10 -10 -9 -8 -7 -6 -5 -4 -4 ------- Run | Yrd Mat Min Exi Min Mat Fac Fac Fac Fac Gar Robot Analysis Total . | . . . . . . . . . . . Derelict Logs Recovered 2 | . . 1 . 1 . . . . . . Drone Launches . | . . . . . . . . . . . Drone Recoveries . | . . . . . . . . . . . Exploration | -11 -10 -10 -10 -9 -8 -7 -6 -5 -4 -4 ------------- Run | Yrd Mat Min Exi Min Mat Fac Fac Fac Fac Gar Turns Passed 7247 | 109 128 440 1583 1212 1452 848 247 1056 87 85 Spaces Moved 5528 | 65 125 758 1055 632 1243 547 181 616 186 120 Core 198 | 12 . . . . 4 . . 6 56 120 Treads . | . . . . . . . . . . . Legs 2387 | . . . . 625 671 547 181 363 . . Wheels 315 | 53 125 75 . . 62 . . . . . Hover . | . . . . . . . . . . . Flight 2628 | . . 683 1055 7 506 . . 247 130 . Fastest Speed 25 | 50 100 37 117 190 25 121 121 39 45 50 Average Speed 114 | 109 100 51 148 190 104 126 121 100 46 50 Slowest Speed 520 | 200 100 117 197 197 400 330 121 520 50 50 Overloaded Moves . | . . . . . . . . . . . Propulsion Burnouts . | . . . . . . . . . . . Robots Hopped 28 | . . 5 . . 13 . . 8 2 . Cave-ins Triggered . | . . . . . . . . . . . Exploration Rate (%) 38 | 4 33 80 92 97 52 14 5 14 5 22 Regions Visited 10 Branch Regions 3 Pre-discovered Areas 1 | . . . 1 . . . . . . . Known Exits Taken 2 | . 1 . . . . . . . 1 . Unknown Exits Taken 8 | 1 . 1 1 1 1 1 1 1 . . Scrap Searched 3 | . . 1 . 2 . . . . . . Spaces Dug 1 | . . . . . . . . 1 . . Terrain Destroyed 74 | . . . . . 46 20 1 7 . . Melee . | . . . . . . . . . . . Projectile 62 | . . . . . 34 20 1 7 . . AOE 12 | . . . . . 12 . . . . . Terrain Rammed . | . . . . . . . . . . . Walls Destroyed . | . . . . . . . . . . . Machines Disabled . | . . . . . . . . . . . Actions | -11 -10 -10 -10 -9 -8 -7 -6 -5 -4 -4 --------- Run | Yrd Mat Min Exi Min Mat Fac Fac Fac Fac Gar Total 6252 | 88 126 796 1078 645 1370 661 196 964 183 145 Wait 307 | . . . . . . 48 . 257 . 2 Move 5463 | 64 124 747 1054 631 1216 546 180 600 181 120 Hop 27 | . . 5 . . 13 . . 7 2 . Pick Up 101 | 8 . 17 8 6 28 10 5 19 . . Fast Attach 5 | . . . . . 2 . . 3 . . Attach 65 | 7 . 5 3 . 30 5 2 13 . . Detach 19 | . . 1 2 . 15 1 . . . . Swap 38 | . . 6 1 2 11 9 1 8 . . Drop 60 | . 1 9 5 6 21 2 1 15 . . Fire 116 | 9 1 5 . . 15 38 7 41 . . Melee 1 | . . 1 . . . . . . . . Ram 5 | . . . . . 1 . . 1 . 3 Kick 20 | . . . . . 18 2 . . . . Crush . | . . . . . . . . . . . Escape Stasis 20 | . . . . . . . . . . 20 Rewire 5 | . . . 5 . . . . . . . Trap . | . . . . . . . . . . . Miscellaneous . | . . . . . . . . . . . Route ------- -11/Scrapyard -10/Materials -10/Mines (discovered 2 exits: [*Mat] / *Exi) -10/Exiles (discovered 2 exits: [*Min x2]) -9/Mines (discovered 2 exits: *Mat x2) -8/Materials -7/Factory (discovered 2 exits: [*Fac] / Sto) -6/Factory -5/Factory -4/Factory -4/Garrison History --------- Turn | Location | Event 42 | -11/Scrapyard | Discovered new exit (range 15) 110 | -11/Scrapyard | Entered Materials 118 | -10/Materials | Identified exit to Mines 238 | -10/Materials | Entered Mines 259 | -10/Mines | Assisted by bots powering up and referring to "LRC-V3" 302 | -10/Mines | Build established: Mutant 527 | -10/Mines | Learned Materials terminal intel 644 | -10/Mines | Discovered new exit (range 15) 665 | -10/Mines | Deemed a non-threat by the Exiles lab entrance 667 | -10/Mines | Discovered new exit (range 5) 678 | -10/Mines | Entered Exiles 678 | -10/Exiles | Accompanied by 3 allies 719 | -10/Exiles | Met 8R-AWN 756 | -10/Exiles | Met EX-HEX 843 | -10/Exiles | Met EX-DEC 866 | -10/Exiles | Learned location of Zion (-6) 873 | -10/Exiles | Build established: Scavenger-Mutant 910 | -10/Exiles | Discovered new exit (range 14) 1059 | -10/Exiles | Visited The Gauntlet 1302 | -10/Exiles | Met EX-BIN 1321 | -10/Exiles | Aligned with FarCom system 1323 | -10/Exiles | Given EX-Vault access code 1430 | -10/Exiles | Opened EX-Vault 1435 | -10/Exiles | Found Prototype Energy Cannon 1436 | -10/Exiles | Identified Gui. Plasma Cannon 1447 | -10/Exiles | Found Prototype Ballistic Gun 1448 | -10/Exiles | Identified AWS/Gauss 1457 | -10/Exiles | Found Deploy-a-Sentry 1460 | -10/Exiles | Found Deploy-a-Sentry 1466 | -10/Exiles | Found Deploy-a-Sentry 1520 | -10/Exiles | Warned to stay clear of 0b10 Research branches 2013 | -10/Exiles | Discovered new exit (range 14) 2261 | -10/Exiles | Stole three prototypes: AWS/Gauss, Gui. Plasma Cannon, Deploy-a-Sentry 2261 | -10/Exiles | Entered Mines 2261 | -9/Mines | Accompanied by 3 allies 2571 | -9/Mines | Build established: Scavenger-Skirmisher 2641 | -9/Mines | Discovered new exit (range 8) 2751 | -9/Mines | Received a Rocket Launcher from a helpful Derelict 3194 | -9/Mines | Received a Mining Laser from a helpful Derelict 3451 | -9/Mines | Discovered new exit (range 5) 3473 | -9/Mines | Entered Materials 3473 | -8/Materials | Accompanied by 2 allies 3473 | -8/Materials | Evolved 4 slots: Propulsion x4 3474 | -8/Materials | Loaded intel: 12 terminal locations 3849 | -8/Materials | Lost 3 parts (3n) 3961 | -8/Materials | DAS Turret deployed 4052 | -8/Materials | DAS Turret deployed 4128 | -8/Materials | Build established: Mutant 4470 | -8/Materials | Build established: Scavenger-Mutant 4523 | -8/Materials | DAS Turret deployed 4793 | -8/Materials | Discovered new exit (range 10) 4925 | -8/Materials | Entered Factory 4925 | -7/Factory | Evolved 2 slots: Utility x1, Weapon x1 4926 | -7/Factory | Identified exit to Storage 4927 | -7/Factory | FarCom data flow suspended 5225 | -7/Factory | Build established: Scavenger-Gunner 5483 | -7/Factory | Discovered new exit (range 12) 5773 | -7/Factory | Entered another Factory area 5773 | -6/Factory | Evolved 2 slots: Power x2 5990 | -6/Factory | Discovered new exit (range 16) 6020 | -6/Factory | Entered another Factory area 6020 | -5/Factory | Evolved 2 slots: Utility x1, Weapon x1 6239 | -5/Factory | Destroyed 8 combat bots 6338 | -5/Factory | Garrison activated, responded to threat 6394 | -5/Factory | Lost 4 parts (2p1n1w) 6456 | -5/Factory | System corruption reached 10% 6492 | -5/Factory | Lost 3 parts (3n) 6529 | -5/Factory | Build established: Scavenger-Skirmisher 6920 | -5/Factory | Fabricated Xenon Bombardment Thruster (x2) 6936 | -5/Factory | Core integrity fell below 50% 6975 | -5/Factory | Lost 5 parts (1p2n2w) 7065 | -5/Factory | Discovered new exit (range 16) 7076 | -5/Factory | Entered another Factory area 7076 | -4/Factory | Evolved 2 slots: Power x1, Utility x1 7128 | -4/Factory | Build established: Mutant 7161 | -4/Factory | Identified exit to Garrison 7163 | -4/Factory | Entered Garrison 7200 | -4/Garrison | Triggered checkpoint 7222 | -4/Garrison | Triggered checkpoint 7236 | -4/Garrison | Core integrity fell below 50% 7243 | -4/Garrison | Core integrity fell below 20% 7248 | -4/Garrison | Destroyed by G-67 Veteran with Plasma Rifle Last Messages --------------- Critical hit (Burn: +37). Triggered Stasis Trap. A bubble of rippling energy engulfs the area. Field strength at 94. Field strength at 73. Field strength at 44. Field strength at 28. Critical hit (Burn: +26). Stasis field depleted. Triggered Stasis Trap. A bubble of rippling energy engulfs the area. Field strength at 94. Field strength at 88. Field strength at 72. Field strength at 61. Field strength at 44. Field strength at 15. Critical hit (Burn: +35). Stasis field depleted. Critical hit (Burn: +37). Map ----- +----------------------------------------------------+ | ?????????????????????????????????????????????????? | | ?????????????????????????????????????????????????? | | ?????????????????????????????????????????????????? | | ?????????????????????????????????????????????????? | | ???????????????????????? ??????????????????????? | | ???????????????????????? #?????????????????????? | | ???????????????????????? ?????????????????????? | | ???????????????????????? ?????????????????????? | | ???????????????????????" ?????????????????????? | | ???????????????????????" ?????????????????????? | | ???????????????????????# #?????????????????????? | | #??????????????????????# ##????????????????????? | | #??????????????????????# ?????????????????????? | | #??????????????????????# ?????????????????????? | | #??????????????????????# ?????????????????????? | | #??????????????????????# #?????????????????????? | | #????????????????????#?# #?????????????????????? | | ????????????????????# # #?????????????????????? | | ????????????????????# # #?????????????????????? | | ????????????????????# # #?????????????????????? | | #????????????????????# # #?????????????????????? | | #????????????????????# # #?????????????????????? | | ######################g# #?????????????????????? | | g ^ #?????????????????????? | | ^ gg g gg^g #?????????????????????? | | ### g @ #?????????????????????? | | ??# ######### #####;#####?????????????????????? | | ??# #???????# T#??# ??????????????????????????? | | ??# #???????# ##??#???????????????????????????? | | ??# #?????### #???????????????????????????????? | | ??# #?????# #???????????????????????????????? | | ??# #?????# #???????????????????????????????? | | ??# #?????# #?#######???????????????????????? | | ??# #?????### ###!!!!!#???????????????????????? | | ??# #???????# !#???????????????????????? | | ??# #???????# !#???????????????????????? | | ??# #???????######!!!!!#???????????????????????? | | ??# #????????????#######???????????????????????? | | ??# #??????????????????????????????????????????? | | ??# #??????????????????????????????????????????? | | ??# #??????????????????????????????????????????? | | ??# #??????????????????????????????????????????? | | ??# #??????????????????????????????????????????? | | ??# #??????????????????????????????????????????? | | ### #??????????????????????????????????????????? | | #??????????????????????????????????????????? | | #??????????????????????????????????????????? | | #??????????????????????????????????????????? | | #######??????????????????????????????????????????? | | ?????????????????????????????????????????????????? | +----------------------------------------------------+ Best States ------------- Heat Dissipation 43 Energy Generation 36 Energy Capacity 350 Matter Stores 521 Matter Capacity 550 Sight Range 22 Terrain Scan Range 16 Terrain Scan Density 10 Additional Mass Support 6 Evasion (%) 65 Matter Filtering 50 Item Schematics ----------------- Xenon Bombardment Thruster | -7/Factory | Scanalyzed Robot Schematics ------------------ None Fabricated ------------ Xenon Bombardment Thruster | x2 | -5/Factory Alien Tech Used ----------------- None Achievements -------------- None Challenges ------------ None Game ------ Seed QuantumSniperTorch Manual? 0 Play Time 01:16:36 Cumulative 8.3 hours Start 2024.04.05 @ 22:11:32 End 2024.04.05 @ 23:28:03 Sessions 3 Manual Loads 0 Difficulty Rogue Special Mode None Game No. 20 Rogue 20 Adventurer 0 Explorer 0 Win Type - Total 0 Types 0/0/0/0/0/0/0/0/0 Lore% 15 Gallery% 18 Achievement% 16 Wizard Run 0 Options --------- Layout 1 ASCII 0 Keyboard 0 Movement Arrows Keybinds 0 Fullscreen 1 Font 24/Smallcaps Map View 50x35 Zoom Use 0% Tactical HUD 0 Map Filters NONE Filters NONE Steam 1 RUN: 7745c4f5-1345-48c3-9483-66247bce1daf